[Event "*** Titled Tuesday Blitz"]
[Site "Chess.com"]
[Date "2020.10.20"]
[Round "2"]
[White "rururkowiec"]
[Black "Pikachess999"]
[Result "0-1"]
[WhiteElo "2702"]
[BlackElo "2353"]
[TimeControl "180+1"]
[EndTime "10:18:28 PDT"]
[Termination "Pikachess999 won by resignation"]

1. e4 {[%clk 0:03:00.9]} 1... e6 {[%clk 0:02:58.6]} 2. d4 {[%clk 0:03:00.6]}
2... d5 {[%clk 0:02:59.1]} 3. e5 {[%clk 0:02:59.3]} 3... c5 {[%clk 0:02:59.3]}
4. c3 {[%clk 0:02:59.6]} 4... Nc6 {[%clk 0:03:00]} 5. Nf3 {[%clk 0:02:59.8]}
5... Bd7 {[%clk 0:02:59.8]} 6. a3 {[%clk 0:02:59.2]} 6... Nge7 {[%clk
0:02:59.7]} 7. b4 {[%clk 0:02:58.3]} 7... cxd4 {[%clk 0:03:00.2]} 8. cxd4 {[%clk
0:02:58.4]} 8... Nf5 {[%clk 0:03:00.8]} 9. Bb2 {[%clk 0:02:58.6]} 9... b5 {[%clk
0:03:01.1]} 10. Nbd2 {[%clk 0:02:55.2]} 10... a5 {[%clk 0:03:00.7]} 11. Bxb5
{[%clk 0:02:53.1]} 11... axb4 {[%clk 0:02:54.6]} 12. a4 {[%clk 0:02:51.7]} 12...
Qb6 {[%clk 0:02:45.3]} 13. Nb3 {[%clk 0:02:50.5]} 13... Be7 {[%clk 0:02:41.2]}
14. O-O {[%clk 0:02:50]} 14... O-O {[%clk 0:02:41.4]} 15. Rc1 {[%clk 0:02:49.8]}
15... Rfc8 {[%clk 0:02:39.1]} 16. Qd3 {[%clk 0:02:48.4]} 16... h6 {[%clk
0:02:21.3]} 17. g4 {[%clk 0:02:41.8]} 17... Nh4 {[%clk 0:02:21.2]} 18. Nxh4
{[%clk 0:02:41]} 18... Bxh4 {[%clk 0:02:22.1]} 19. Nc5 {[%clk 0:02:41.1]} 19...
Be8 {[%clk 0:02:19.1]} 20. f4 {[%clk 0:02:40.7]} 20... Na5 {[%clk 0:02:09.8]}
21. f5 {[%clk 0:02:38.4]} 21... Bxb5 {[%clk 0:02:08.4]} 22. axb5 {[%clk
0:02:39.3]} 22... Nc4 {[%clk 0:02:07.8]} 23. Rxc4 {[%clk 0:02:39.6]} 23... dxc4
{[%clk 0:02:07.9]} 24. Qxc4 {[%clk 0:02:40.5]} 24... Be7 {[%clk 0:02:05.7]} 25.
Rc1 {[%clk 0:02:27.4]} 25... Ra5 {[%clk 0:02:03.6]} 26. fxe6 {[%clk 0:02:18.3]}
26... fxe6 {[%clk 0:02:03.4]} 27. Qb3 {[%clk 0:02:15]} 27... Rxb5 {[%clk
0:01:55.2]} 28. Nxe6 {[%clk 0:02:13.7]} 28... Rxc1+ {[%clk 0:01:55]} 29. Bxc1
{[%clk 0:02:14.6]} 29... Kh8 {[%clk 0:01:39.5]} 30. Qc4 {[%clk 0:01:55.1]} 30...
Rxe5 {[%clk 0:01:15]} 31. Nf4 {[%clk 0:01:30.7]} 31... Qxd4+ {[%clk 0:00:26.9]}
32. Qxd4 {[%clk 0:01:26.6]} 32... Bc5 {[%clk 0:00:27.2]} 33. Qxc5 {[%clk
0:01:17.8]} 33... Rxc5 {[%clk 0:00:28.1]} 34. Bb2 {[%clk 0:01:08.7]} 34... Rc2
{[%clk 0:00:25.7]} 35. Be5 {[%clk 0:01:07.9]} 35... Rd2 {[%clk 0:00:18]} 36. Nh5
{[%clk 0:00:47.8]} 36... b3 {[%clk 0:00:16.4]} 37. Nxg7 {[%clk 0:00:46.6]} 37...
b2 {[%clk 0:00:12]} 38. Nf5+ {[%clk 0:00:45.9]} 38... Kh7 {[%clk 0:00:12.3]} 39.
Bxb2 {[%clk 0:00:45.7]} 39... Rxb2 {[%clk 0:00:13.2]} 40. h4 {[%clk 0:00:46.1]}
40... Rb4 {[%clk 0:00:09.8]} 41. Ne3 {[%clk 0:00:44.4]} 41... Rb2 {[%clk
0:00:09.5]} 42. Nf5 {[%clk 0:00:39.9]} 42... Kg6 {[%clk 0:00:08.6]} 43. Kf1
{[%clk 0:00:36.4]} 43... Rh2 {[%clk 0:00:08]} 44. Kg1 {[%clk 0:00:33.4]} 44...
Re2 {[%clk 0:00:07.3]} 45. Kf1 {[%clk 0:00:31.9]} 45... Re4 {[%clk 0:00:06]} 46.
g5 {[%clk 0:00:19.6]} 46... Kxf5 {[%clk 0:00:05]} 0-1

[Event "*** Titled Tuesday Blitz"]
[Site "Chess.com"]
[Date "2020.10.20"]
[Round "2"]
[White "RasSanti"]
[Black "alejanchess73"]
[Result "1-0"]
[WhiteElo "2275"]
[BlackElo "2434"]
[TimeControl "180+1"]
[EndTime "10:18:28 PDT"]
[Termination "RasSanti won by resignation"]

1. d4 {[%clk 0:01:49.7]} 1... Nf6 {[%clk 0:02:57.9]} 2. Bg5 {[%clk 0:01:48.5]}
2... d5 {[%clk 0:02:56.9]} 3. Bxf6 {[%clk 0:01:48.3]} 3... exf6 {[%clk 0:02:57]}
4. c4 {[%clk 0:01:43.7]} 4... dxc4 {[%clk 0:02:56.2]} 5. Nc3 {[%clk 0:01:42.1]}
5... Bb4 {[%clk 0:02:51.6]} 6. e3 {[%clk 0:01:36.9]} 6... O-O {[%clk 0:02:50.5]}
7. Bxc4 {[%clk 0:01:36]} 7... c5 {[%clk 0:02:50.5]} 8. a3 {[%clk 0:01:32.8]}
8... Bxc3+ {[%clk 0:02:49.5]} 9. bxc3 {[%clk 0:01:33.7]} 9... Qa5 {[%clk
0:02:44.6]} 10. Qd2 {[%clk 0:01:30]} 10... Nc6 {[%clk 0:02:40.9]} 11. Ne2 {[%clk
0:01:26.7]} 11... Rd8 {[%clk 0:02:33.1]} 12. O-O {[%clk 0:01:18.4]} 12... cxd4
{[%clk 0:02:32.1]} 13. exd4 {[%clk 0:01:19.3]} 13... b5 {[%clk 0:02:27.7]} 14.
Bd3 {[%clk 0:01:15.7]} 14... a6 {[%clk 0:02:01.6]} 15. Qc2 {[%clk 0:01:07.4]}
15... g6 {[%clk 0:01:56.8]} 16. Rfc1 {[%clk 0:01:02.2]} 16... Bb7 {[%clk
0:01:50.5]} 17. Be4 {[%clk 0:01:01.6]} 17... Rac8 {[%clk 0:01:48.6]} 18. Qd2
{[%clk 0:00:57.3]} 18... Kg7 {[%clk 0:01:38.2]} 19. Qf4 {[%clk 0:00:52.7]} 19...
Qc7 {[%clk 0:01:34.9]} 20. Qf3 {[%clk 0:00:49.3]} 20... Na5 {[%clk 0:01:30.9]}
21. Bxb7 {[%clk 0:00:39.1]} 21... Qxb7 {[%clk 0:01:31.3]} 22. Qxb7 {[%clk
0:00:37.2]} 22... Nxb7 {[%clk 0:01:32.2]} 23. a4 {[%clk 0:00:35.7]} 23... Nd6
{[%clk 0:01:26.5]} 24. f3 {[%clk 0:00:30.4]} 24... Rc4 {[%clk 0:01:20.6]} 25.
axb5 {[%clk 0:00:28.5]} 25... axb5 {[%clk 0:01:20.6]} 26. Rcb1 {[%clk
0:00:19.2]} 26... g5 {[%clk 0:01:14]} 27. Kf2 {[%clk 0:00:17.4]} 27... h5 {[%clk
0:01:14]} 28. Ra6 {[%clk 0:00:13.9]} 28... h4 {[%clk 0:01:09.9]} 29. Ke3 {[%clk
0:00:13]} 29... Nf5+ {[%clk 0:00:55.3]} 30. Kd3 {[%clk 0:00:12.8]} 30... Re8
{[%clk 0:00:48.5]} 31. Rxb5 {[%clk 0:00:11.3]} 31... Rxe2 {[%clk 0:00:41.7]} 32.
Kxe2 {[%clk 0:00:12.2]} 32... Ne7 {[%clk 0:00:34.4]} 33. Kd3 {[%clk 0:00:12.4]}
33... Rc7 {[%clk 0:00:33.1]} 34. Rab6 {[%clk 0:00:11.4]} 34... Ng6 {[%clk
0:00:31.6]} 35. g3 {[%clk 0:00:10.7]} 35... h3 {[%clk 0:00:30.9]} 36. Rb7 {[%clk
0:00:10]} 36... Rc6 {[%clk 0:00:31.2]} 37. R7b6 {[%clk 0:00:09.8]} 37... Rc8
{[%clk 0:00:31.3]} 38. c4 {[%clk 0:00:10.4]} 38... Ra8 {[%clk 0:00:31]} 39. d5
{[%clk 0:00:10.2]} 39... Ra2 {[%clk 0:00:30.8]} 40. Rb2 {[%clk 0:00:10.5]} 40...
Ra3+ {[%clk 0:00:30.6]} 41. R6b3 {[%clk 0:00:11]} 41... Ra1 {[%clk 0:00:31.2]}
42. Kd4 {[%clk 0:00:11.4]} 42... Ne5 {[%clk 0:00:30.9]} 43. Re3 {[%clk
0:00:10.3]} 43... Rd1+ {[%clk 0:00:30.7]} 44. Kc5 {[%clk 0:00:10.5]} 44... Rc1
{[%clk 0:00:30.7]} 45. Rxe5 {[%clk 0:00:10.5]} 45... fxe5 {[%clk 0:00:30.2]} 46.
d6 {[%clk 0:00:11.4]} 46... Rd1 {[%clk 0:00:29.5]} 47. Kc6 {[%clk 0:00:11.1]}
47... f5 {[%clk 0:00:28.3]} 48. c5 {[%clk 0:00:11.1]} 48... e4 {[%clk
0:00:28.7]} 49. fxe4 {[%clk 0:00:12]} 49... fxe4 {[%clk 0:00:29.1]} 50. d7
{[%clk 0:00:12]} 50... e3 {[%clk 0:00:29]} 51. Re2 {[%clk 0:00:11.8]} 51... Rd3
{[%clk 0:00:29]} 52. Kc7 {[%clk 0:00:11.4]} 52... g4 {[%clk 0:00:28.3]} 53. c6
{[%clk 0:00:10.3]} 53... Kf6 {[%clk 0:00:27.8]} 54. d8=Q+ {[%clk 0:00:10.5]}
54... Rxd8 {[%clk 0:00:27.3]} 55. Kxd8 {[%clk 0:00:11.4]} 1-0

[Event "*** Titled Tuesday Blitz"]
[Site "Chess.com"]
[Date "2020.10.20"]
[Round "2"]
[White "tylityli"]
[Black "ShapkinAnatoliy"]
[Result "0-1"]
[WhiteElo "2220"]
[BlackElo "2650"]
[TimeControl "180+1"]
[EndTime "10:18:31 PDT"]
[Termination "ShapkinAnatoliy won on time"]

1. d4 {[%clk 0:02:50.7]} 1... Nf6 {[%clk 0:02:57.8]} 2. c4 {[%clk 0:02:50]} 2...
g6 {[%clk 0:02:57.5]} 3. Nc3 {[%clk 0:02:49.6]} 3... d5 {[%clk 0:02:57.7]} 4.
cxd5 {[%clk 0:02:49]} 4... Nxd5 {[%clk 0:02:58.6]} 5. Bd2 {[%clk 0:02:49.7]}
5... Bg7 {[%clk 0:02:58.3]} 6. e4 {[%clk 0:02:49.1]} 6... Nb6 {[%clk 0:02:58.3]}
7. Be3 {[%clk 0:02:49]} 7... O-O {[%clk 0:02:58.9]} 8. Bb5 {[%clk 0:02:45.9]}
8... Be6 {[%clk 0:02:57.1]} 9. d5 {[%clk 0:02:43.3]} 9... Bd7 {[%clk 0:02:56.1]}
10. Be2 {[%clk 0:02:39.2]} 10... c6 {[%clk 0:02:54.2]} 11. Nf3 {[%clk
0:02:38.4]} 11... Bg4 {[%clk 0:02:53.2]} 12. Bd4 {[%clk 0:02:32.2]} 12... Bxf3
{[%clk 0:02:34.4]} 13. Bxf3 {[%clk 0:02:27]} 13... Bxd4 {[%clk 0:02:31.9]} 14.
Qxd4 {[%clk 0:02:25.9]} 14... cxd5 {[%clk 0:02:32]} 15. exd5 {[%clk 0:02:18]}
15... Nc6 {[%clk 0:02:26.6]} 16. Qf4 {[%clk 0:02:14.9]} 16... Na5 {[%clk
0:02:25.7]} 17. O-O {[%clk 0:02:11.2]} 17... Nac4 {[%clk 0:02:24.8]} 18. b3
{[%clk 0:02:07.1]} 18... Nd6 {[%clk 0:02:18.1]} 19. Rad1 {[%clk 0:01:59.8]}
19... Rc8 {[%clk 0:02:17.2]} 20. Ne4 {[%clk 0:01:58.9]} 20... Nxe4 {[%clk
0:02:15.8]} 21. Qxe4 {[%clk 0:01:54.7]} 21... Qd6 {[%clk 0:02:16.4]} 22. h4
{[%clk 0:01:53.6]} 22... h5 {[%clk 0:02:09.1]} 23. Rfe1 {[%clk 0:01:51.6]} 23...
Rc7 {[%clk 0:02:06.9]} 24. g4 {[%clk 0:01:51]} 24... hxg4 {[%clk 0:02:05.7]} 25.
Qxg4 {[%clk 0:01:51.5]} 25... Nd7 {[%clk 0:02:00]} 26. Kg2 {[%clk 0:01:48.3]}
26... Nf6 {[%clk 0:01:57.1]} 27. Qg3 {[%clk 0:01:46]} 27... Kg7 {[%clk
0:01:54.2]} 28. Re5 {[%clk 0:01:41.9]} 28... Rc2 {[%clk 0:01:41.4]} 29. h5
{[%clk 0:01:22.3]} 29... Nd7 {[%clk 0:01:33.4]} 30. h6+ {[%clk 0:01:17]} 30...
Kxh6 {[%clk 0:01:02.4]} 31. Rh1+ {[%clk 0:00:50]} 31... Kg7 {[%clk 0:01:01.8]}
32. Re2 {[%clk 0:00:34.3]} 32... Qxg3+ {[%clk 0:00:59.3]} 33. Kxg3 {[%clk
0:00:31.2]} 33... Rxe2 {[%clk 0:00:58.2]} 34. Bxe2 {[%clk 0:00:32.1]} 34... Rc8
{[%clk 0:00:58.7]} 35. Bc4 {[%clk 0:00:31.3]} 35... Ne5 {[%clk 0:00:55.3]} 36.
Rh4 {[%clk 0:00:29.5]} 36... a6 {[%clk 0:00:43.5]} 37. a4 {[%clk 0:00:27.6]}
37... f5 {[%clk 0:00:43.7]} 38. Rd4 {[%clk 0:00:23.6]} 38... Nf7 {[%clk
0:00:40.4]} 39. f4 {[%clk 0:00:17.1]} 39... Nd6 {[%clk 0:00:40]} 40. Kf3 {[%clk
0:00:16.7]} 40... b5 {[%clk 0:00:38.8]} 41. Be2 {[%clk 0:00:10.5]} 41... Kf6
{[%clk 0:00:32.2]} 42. axb5 {[%clk 0:00:06.3]} 42... axb5 {[%clk 0:00:33.1]} 43.
Rb4 {[%clk 0:00:06.4]} 43... Rc5 {[%clk 0:00:31.4]} 44. Rd4 {[%clk 0:00:01.7]}
44... Ne4 {[%clk 0:00:20.3]} 0-1

[Event "*** Titled Tuesday Blitz"]
[Site "Chess.com"]
[Date "2020.10.20"]
[Round "2"]
[White "atalz0"]
[Black "night_player"]
[Result "0-1"]
[WhiteElo "2410"]
[BlackElo "2247"]
[TimeControl "180+1"]
[EndTime "10:18:31 PDT"]
[Termination "night_player won by resignation"]

1. d4 {[%clk 0:03:00.9]} 1... d5 {[%clk 0:01:48.3]} 2. c4 {[%clk 0:02:56.4]}
2... e6 {[%clk 0:01:48.4]} 3. Nc3 {[%clk 0:02:56.1]} 3... Nf6 {[%clk 0:01:48.9]}
4. cxd5 {[%clk 0:02:56]} 4... exd5 {[%clk 0:01:49]} 5. Bg5 {[%clk 0:02:56]} 5...
c6 {[%clk 0:01:49]} 6. e3 {[%clk 0:02:55.8]} 6... Bf5 {[%clk 0:01:49.5]} 7. Qf3
{[%clk 0:02:56]} 7... Bg6 {[%clk 0:01:48.5]} 8. Bxf6 {[%clk 0:02:56.5]} 8...
Qxf6 {[%clk 0:01:48.2]} 9. Qxf6 {[%clk 0:02:56.9]} 9... gxf6 {[%clk 0:01:48.5]}
10. Nf3 {[%clk 0:02:57.4]} 10... Nd7 {[%clk 0:01:45.3]} 11. Nh4 {[%clk
0:02:53.8]} 11... Bb4 {[%clk 0:01:44]} 12. f3 {[%clk 0:02:49.7]} 12... O-O-O
{[%clk 0:01:42.4]} 13. Kf2 {[%clk 0:02:50.2]} 13... Rhe8 {[%clk 0:01:40.6]} 14.
g3 {[%clk 0:02:48.7]} 14... Re7 {[%clk 0:01:36]} 15. Rc1 {[%clk 0:02:44]} 15...
Kb8 {[%clk 0:01:34.1]} 16. Bh3 {[%clk 0:02:38.6]} 16... Nb6 {[%clk 0:01:29.7]}
17. a3 {[%clk 0:02:19.2]} 17... Bxc3 {[%clk 0:01:16.4]} 18. Rxc3 {[%clk
0:02:20.1]} 18... Rde8 {[%clk 0:01:16.3]} 19. Nf5 {[%clk 0:02:00]} 19... Bxf5
{[%clk 0:01:03.2]} 20. Bxf5 {[%clk 0:02:00.9]} 20... Nc4 {[%clk 0:01:03.8]} 21.
Bxh7 {[%clk 0:01:43.2]} 21... Nxe3 {[%clk 0:00:56.5]} 22. Bd3 {[%clk 0:01:33.7]}
22... Nc4 {[%clk 0:00:48.2]} 23. Rb1 {[%clk 0:00:54.9]} 23... Nb6 {[%clk
0:00:39.4]} 24. Rcc1 {[%clk 0:00:47.8]} 24... Rh8 {[%clk 0:00:30.2]} 25. h4
{[%clk 0:00:47.1]} 25... Kc7 {[%clk 0:00:26.9]} 26. Re1 {[%clk 0:00:46.3]} 26...
Kd6 {[%clk 0:00:24.3]} 27. Rxe7 {[%clk 0:00:44.3]} 27... Kxe7 {[%clk 0:00:25.2]}
28. Re1+ {[%clk 0:00:44.1]} 28... Kd6 {[%clk 0:00:25.7]} 29. Rh1 {[%clk
0:00:39]} 29... Nc4 {[%clk 0:00:20.7]} 30. Bxc4 {[%clk 0:00:35.4]} 30... dxc4
{[%clk 0:00:21.6]} 31. Ke3 {[%clk 0:00:24]} 31... Kd5 {[%clk 0:00:21]} 32. Rd1
{[%clk 0:00:24]} 32... b5 {[%clk 0:00:18.6]} 33. Rd2 {[%clk 0:00:21.1]} 33...
Rg8 {[%clk 0:00:18.6]} 34. Kf4 {[%clk 0:00:20.8]} 34... a5 {[%clk 0:00:17.6]}
35. g4 {[%clk 0:00:20.2]} 35... b4 {[%clk 0:00:16.6]} 36. axb4 {[%clk
0:00:20.2]} 36... axb4 {[%clk 0:00:17.5]} 37. Kf5 {[%clk 0:00:14.2]} 37... c3
{[%clk 0:00:17.8]} 38. bxc3 {[%clk 0:00:13.9]} 38... bxc3 {[%clk 0:00:18.7]} 39.
Rd1 {[%clk 0:00:13.5]} 39... Kc4 {[%clk 0:00:15]} 40. h5 {[%clk 0:00:11.1]}
40... c2 {[%clk 0:00:15.1]} 41. Rh1 {[%clk 0:00:09.3]} 41... Kd3 {[%clk
0:00:11.4]} 42. Kxf6 {[%clk 0:00:06.1]} 42... Kd2 {[%clk 0:00:10.6]} 43. Kxf7
{[%clk 0:00:05.4]} 43... Rd8 {[%clk 0:00:11.2]} 44. h6 {[%clk 0:00:04.7]} 44...
c1=Q {[%clk 0:00:11.3]} 45. h7 {[%clk 0:00:04.8]} 45... Qxh1 {[%clk 0:00:10.7]}
0-1

[Event "*** Titled Tuesday Blitz"]
[Site "Chess.com"]
[Date "2020.10.20"]
[Round "2"]
[White "GregShahade"]
[Black "SHIVACalypso"]
[Result "1-0"]
[WhiteElo "2663"]
[BlackElo "2348"]
[TimeControl "180+1"]
[EndTime "10:18:32 PDT"]
[Termination "GregShahade won by resignation"]

1. e4 {[%clk 0:03:00.9]} 1... e6 {[%clk 0:02:58.7]} 2. d4 {[%clk 0:03:00.4]}
2... d5 {[%clk 0:02:58.7]} 3. Nd2 {[%clk 0:03:01.1]} 3... Nf6 {[%clk 0:02:58.1]}
4. e5 {[%clk 0:03:01.5]} 4... Nfd7 {[%clk 0:02:58.3]} 5. c3 {[%clk 0:03:02.3]}
5... c5 {[%clk 0:02:58.8]} 6. Bd3 {[%clk 0:03:02.7]} 6... Nc6 {[%clk 0:02:58.9]}
7. Ne2 {[%clk 0:03:03.5]} 7... cxd4 {[%clk 0:02:58.8]} 8. cxd4 {[%clk
0:03:04.4]} 8... f6 {[%clk 0:02:59.4]} 9. exf6 {[%clk 0:03:05.2]} 9... Nxf6
{[%clk 0:02:59.8]} 10. O-O {[%clk 0:03:05.6]} 10... Bd6 {[%clk 0:03:00.2]} 11.
Nf3 {[%clk 0:03:06.1]} 11... O-O {[%clk 0:02:59.5]} 12. Bf4 {[%clk 0:03:06.2]}
12... Bxf4 {[%clk 0:02:58.9]} 13. Nxf4 {[%clk 0:03:07.1]} 13... Ne4 {[%clk
0:02:57.6]} 14. Ne2 {[%clk 0:03:06]} 14... Rxf3 {[%clk 0:02:54.3]} 15. gxf3
{[%clk 0:03:06.9]} 15... Ng5 {[%clk 0:02:54.4]} 16. Kh1 {[%clk 0:03:02]} 16...
e5 {[%clk 0:02:50]} 17. Qb3 {[%clk 0:02:39.9]} 17... Kh8 {[%clk 0:02:32.1]} 18.
Bc2 {[%clk 0:02:34.8]} 18... Be6 {[%clk 0:01:42.2]} 19. f4 {[%clk 0:02:26.2]}
19... exf4 {[%clk 0:01:27.5]} 20. Nxf4 {[%clk 0:01:31.2]} 20... Bf7 {[%clk
0:01:16.4]} 21. Rad1 {[%clk 0:01:17.3]} 21... Qd6 {[%clk 0:00:50.8]} 22. Qg3
{[%clk 0:01:13.7]} 22... Qf6 {[%clk 0:00:32.8]} 23. Rfe1 {[%clk 0:01:05.6]}
23... Rf8 {[%clk 0:00:23.8]} 24. h4 {[%clk 0:00:42.1]} 24... Ne6 {[%clk
0:00:17.9]} 25. Nxd5 {[%clk 0:00:37.6]} 25... Qh6 {[%clk 0:00:13.2]} 26. Ne3
{[%clk 0:00:35.8]} 26... Nexd4 {[%clk 0:00:12.5]} 27. Nf5 {[%clk 0:00:25.1]}
27... Nxf5 {[%clk 0:00:11.6]} 28. Bxf5 {[%clk 0:00:26]} 28... Bxa2 {[%clk
0:00:11]} 29. Be4 {[%clk 0:00:22.5]} 29... Bb3 {[%clk 0:00:09.7]} 30. Rd7 {[%clk
0:00:19.6]} 30... Be6 {[%clk 0:00:08.1]} 31. Rxb7 {[%clk 0:00:17.3]} 31... Nd8
{[%clk 0:00:03.3]} 32. Rxa7 {[%clk 0:00:16.6]} 32... Nf7 {[%clk 0:00:03.3]} 33.
Bg2 {[%clk 0:00:16.5]} 33... Nd6 {[%clk 0:00:03]} 34. Qxd6 {[%clk 0:00:13.4]}
34... Qxh4+ {[%clk 0:00:02.8]} 35. Qh2 {[%clk 0:00:13.6]} 35... Qxf2 {[%clk
0:00:02.4]} 36. Rg1 {[%clk 0:00:11.3]} 36... Qxa7 {[%clk 0:00:02.1]} 37. Be4
{[%clk 0:00:11.5]} 37... g6 {[%clk 0:00:01.7]} 38. Qe5+ {[%clk 0:00:11.6]} 38...
Qg7 {[%clk 0:00:01.7]} 39. Qxe6 {[%clk 0:00:12]} 39... Qf7 {[%clk 0:00:01.5]}
40. Qxf7 {[%clk 0:00:12]} 40... Rxf7 {[%clk 0:00:02.4]} 41. Rb1 {[%clk 0:00:12]}
41... Re7 {[%clk 0:00:02]} 42. Bg2 {[%clk 0:00:11.8]} 42... Re8 {[%clk
0:00:02.6]} 43. b4 {[%clk 0:00:12.3]} 43... Rb8 {[%clk 0:00:03.2]} 44. b5 {[%clk
0:00:12.9]} 44... Rb6 {[%clk 0:00:04.1]} 45. Bc6 {[%clk 0:00:12.4]} 45... h5
{[%clk 0:00:05]} 46. Ra1 {[%clk 0:00:12.7]} 46... Kg7 {[%clk 0:00:04.2]} 47. Ra6
{[%clk 0:00:13.2]} 47... Rb8 {[%clk 0:00:03.6]} 48. b6 {[%clk 0:00:13.6]} 48...
g5 {[%clk 0:00:04]} 49. b7 {[%clk 0:00:14]} 1-0

[Event "*** Titled Tuesday Blitz"]
[Site "Chess.com"]
[Date "2020.10.20"]
[Round "2"]
[White "Chernobay_Artem"]
[Black "Me_ch_an"]
[Result "1-0"]
[WhiteElo "2572"]
[BlackElo "2318"]
[TimeControl "180+1"]
[EndTime "10:18:32 PDT"]
[Termination "Chernobay_Artem won on time"]

1. d4 {[%clk 0:03:00.9]} 1... d5 {[%clk 0:02:59.7]} 2. c4 {[%clk 0:03:00.6]}
2... dxc4 {[%clk 0:03:00.6]} 3. e4 {[%clk 0:03:00.2]} 3... e5 {[%clk 0:03:00.5]}
4. Nf3 {[%clk 0:02:58.6]} 4... exd4 {[%clk 0:02:59.2]} 5. Bxc4 {[%clk
0:02:59.1]} 5... Bb4+ {[%clk 0:02:59.1]} 6. Nbd2 {[%clk 0:02:52.2]} 6... Qf6
{[%clk 0:02:54.2]} 7. O-O {[%clk 0:02:45.4]} 7... Ne7 {[%clk 0:02:51]} 8. e5
{[%clk 0:02:43.1]} 8... Qg6 {[%clk 0:02:50.6]} 9. Nh4 {[%clk 0:02:18.6]} 9...
Qg4 {[%clk 0:02:42.4]} 10. Ndf3 {[%clk 0:02:08.9]} 10... Nbc6 {[%clk 0:02:32.6]}
11. a3 {[%clk 0:01:59]} 11... Bc5 {[%clk 0:02:27.7]} 12. b4 {[%clk 0:01:58.3]}
12... Bb6 {[%clk 0:02:25.8]} 13. Re1 {[%clk 0:01:49.3]} 13... O-O {[%clk
0:02:12.6]} 14. h3 {[%clk 0:01:48.8]} 14... Qd7 {[%clk 0:02:05.8]} 15. Ng5
{[%clk 0:01:47.6]} 15... Nd5 {[%clk 0:01:59]} 16. Qf3 {[%clk 0:01:31.3]} 16...
Nce7 {[%clk 0:01:48.6]} 17. Qh5 {[%clk 0:01:18.4]} 17... h6 {[%clk 0:01:45.6]}
18. Nxf7 {[%clk 0:01:17.1]} 18... Qe6 {[%clk 0:01:25.4]} 19. Nxh6+ {[%clk
0:01:03.2]} 19... gxh6 {[%clk 0:01:24.5]} 20. Re4 {[%clk 0:01:03]} 20... Qf7
{[%clk 0:01:14.8]} 21. Qxh6 {[%clk 0:00:58]} 21... Qg7 {[%clk 0:01:06.2]} 22.
Ng6 {[%clk 0:00:40]} 22... Qxh6 {[%clk 0:00:22.6]} 23. Nxe7+ {[%clk 0:00:38.5]}
23... Kh7 {[%clk 0:00:18.4]} 24. Bxh6 {[%clk 0:00:38.4]} 24... Kxh6 {[%clk
0:00:16.8]} 25. Nxd5 {[%clk 0:00:28.1]} 25... Bf5 {[%clk 0:00:15.2]} 26. Rh4+
{[%clk 0:00:21.3]} 26... Kg5 {[%clk 0:00:14.8]} 27. g3 {[%clk 0:00:21.5]} 27...
d3 {[%clk 0:00:12.6]} 28. Nxb6 {[%clk 0:00:17.8]} 28... axb6 {[%clk 0:00:11.7]}
29. f4+ {[%clk 0:00:16.2]} 29... Kg6 {[%clk 0:00:11.7]} 30. g4 {[%clk
0:00:16.7]} 30... Be4 {[%clk 0:00:11.5]} 31. f5+ {[%clk 0:00:16.9]} 31... Kg5
{[%clk 0:00:11.6]} 32. Rh5+ {[%clk 0:00:14]} 32... Kf4 {[%clk 0:00:11.9]} 33.
Kf2 {[%clk 0:00:14.4]} 33... Rad8 {[%clk 0:00:07.7]} 34. e6 {[%clk 0:00:13.6]}
34... Rfe8 {[%clk 0:00:03.2]} 35. Rd1 {[%clk 0:00:12.8]} 35... d2 {[%clk
0:00:03.2]} 36. Rh7 {[%clk 0:00:10.9]} 36... Bc2 {[%clk 0:00:01.9]} 37. Ke2
{[%clk 0:00:06.5]} 37... Bxd1+ {[%clk 0:00:02.1]} 38. Kxd1 {[%clk 0:00:07.4]}
38... c5 {[%clk 0:00:01.7]} 39. f6 {[%clk 0:00:05]} 39... Ke3 {[%clk 0:00:01]}
40. e7 {[%clk 0:00:04.9]} 40... Rd7 {[%clk 0:00:01.1]} 41. Bb5 {[%clk
0:00:04.5]} 1-0